Cogmind - Beta 12 @@@ ROGUE MODE // 2023.12.18 @ 09:41:48 Player: puppuppit Result: Destroyed by G-47 Trooper with Particle Gun Performance ------------- Evolutions (2) 1000 Regions Visited (8) 1600 Robots Destroyed (67) 335 Value Destroyed (1882) 1882 Prototype IDs (26) 520 Alien Tech Used (0) 0 Bonus (830) 830 TOTAL SCORE: 6167 Bonus ------- High Alert Combat Kills 40 Follower Combat Kills 516 Aligned with FarCom 300 Friendly Fire -26 Cogmind --------- Core Integrity 0/550 Matter 300/300 Energy 98/100 System Corruption 5% Temperature Cool (9) Movement Core (50) Location -8/Storage Parts ------- > --- POWER (1) -------- (None) > --- PROPULSION (4) --- (None) > --- UTILITY (4) ------ Utility Shielding > --- WEAPON (2) ------- (None) > --- INVENTORY (5) ---- Experimental Sensor Array System Shield Supersonic Drone Bay (1/1) Peak State ------------ > --- POWER ------------ Light Nuclear Core > --- PROPULSION ------- Aluminum Leg Hover Unit Hover Unit Improved Hover Unit > --- UTILITY ---------- Kinecellerator Weapon Cycler Utility Shielding Hacking Suite > --- WEAPON ----------- Gauss Rifle Assault Cannon > --- INVENTORY -------- Light Ion Engine Light Ion Engine Medium Matter Pod Experimental Sensor Array Supersonic Drone Bay [Rating: 29] Favorites ----------- Power Light Ion Engine Engine Light Ion Engine Power Core Light Nuclear Core Propulsion Hover Unit Leg Aluminum Leg Wheel Compact Wheel Hover Unit Hover Unit Flight Unit Flight Unit Utility Small Storage Unit Device Weapon Cycler Storage Small Storage Unit Processor Signal Interpreter Hackware Hacking Suite Protection Utility Shielding Weapon Improved Assault Rifle Energy Gun EM Pulse Gun Energy Cannon Advanced Beam Cannon Ballistic Gun Improved Assault Rifle Ballistic Cannon Assault Cannon Launcher Grenade Launcher Build | -11 -10 -10 -9 -9 -9 -8 -8 -8 ------- Run | Jun Mat Min Mat Min Exi Min Mat Sto Slots Evolved 4 | . . . 2 . . . 2 . Power . | . . . . . . . . . Propulsion 2 | . . . . . . . 2 . Utility 2 | . . . 2 . . . . . Weapon . | . . . . . . . . . Parts Attached 79 | 7 12 3 20 6 . . 24 7 Power 13 | 2 2 1 3 . . . 5 . Engine 12 | 2 2 1 3 . . . 4 . Core 1 | . . . . . . . 1 . Reactor . | . . . . . . . . . Propulsion 24 | 2 4 2 6 2 . . 5 3 Treads . | . . . . . . . . . Leg 3 | . . . . 2 . . 1 . Wheel 2 | 2 . . . . . . . . Hover 17 | . 4 2 4 . . . 4 3 Flight 2 | . . . 2 . . . . . Utility 17 | 1 2 . 4 2 . . 7 1 Device 5 | . . . . 2 . . 3 . Storage 2 | 1 . . . . . . . 1 Processor 3 | . 2 . 1 . . . . . Hackware 1 | . . . . . . . 1 . Protection 6 | . . . 3 . . . 3 . Artifact . | . . . . . . . . . Weapon 25 | 2 4 . 7 2 . . 7 3 Energy Gun 1 | 1 . . . . . . . . Energy Cannon 1 | . . . . . . . . 1 Ballistic Gun 18 | 1 4 . 6 2 . . 3 2 Ballistic Cannon 3 | . . . . . . . 3 . Launcher 2 | . . . 1 . . . 1 . Special Weapon . | . . . . . . . . . Impact Weapon . | . . . . . . . . . Slashing Weapon . | . . . . . . . . . Piercing Weapon . | . . . . . . . . . Special Melee Weapon . | . . . . . . . . . Unidentified Prototypes 3 | . . . 1 . . . 1 1 Corrupted Parts 1 | . 1 . . . . . . . System Corruption 1 | . 1 . . . . . . . Parts Lost 25 | . . 3 5 2 . . 2 13 Power 3 | . . 1 . . . . 1 1 Propulsion 11 | . . 2 2 1 . . 1 5 Utility 5 | . . . . 1 . . . 4 Weapon 6 | . . . 3 . . . . 3 Highest Loss Streak 12 | . . 2 3 2 . . 1 12 To Critical Strikes . | . . . . . . . . . Average Slot Usage (%) 91 | . 94 96 83 91 100 100 87 80 Engine 10 | . 14 12 9 11 11 11 6 . Leg 10 | . . . . 18 22 22 21 7 Wheel 1 | . 7 . . . . . . . Hover 13 | . 20 25 18 3 . . 12 18 Device 10 | . . . . 18 22 22 18 13 Storage 10 | . 14 14 11 11 11 11 6 . Processor 11 | . 10 14 22 12 11 11 5 . Protection 1 | . . . 3 1 . . 1 9 Ballistic Gun 17 | . 22 28 15 14 22 22 3 7 Ballistic Cannon 1 | . . . . . . . 7 7 Naked Turns . | . . . . . . . . . Heaviest Build 19 | 12 12 10 14 19 19 19 19 19 Greatest Support 30 | 26 26 12 12 20 20 20 30 19 Greatest Overweight (x) 3 | 3 . 1 1 1 . . . . Average Overweight (x) . | . . . . . . . . . Largest Inventory Capacity 8 | 8 8 8 8 8 8 8 8 5 Average Capacity 7 | 7 8 8 8 8 8 8 7 5 Most Carried 8 | . 8 8 8 8 8 8 8 5 Average Carried 6 | . 5 7 7 7 7 7 6 4 Final Capacity 8 | 8 8 8 8 8 8 8 5 5 Final Carried 8 | . 8 8 6 7 8 8 4 3 Class Distribution -------------------- 89% | Scavenger-Mutant 10% | Mutant Dominant Class ---------------- Scavenger-Mutant | -10/Materials Scavenger-Mutant | -10/Mines Scavenger-Mutant | -9/Materials Scavenger-Mutant | -9/Mines Scavenger-Mutant | -9/Exiles Scavenger-Mutant | -8/Mines Scavenger-Mutant | -8/Materials Scavenger-Mutant | -8/Storage Resources | -11 -10 -10 -9 -9 -9 -8 -8 -8 ----------- Run | Jun Mat Min Mat Min Exi Min Mat Sto Matter Collected 1845 | 268 319 67 399 128 . . 456 208 Remotely . | . . . . . . . . . Salvage Created 2276 | . 537 162 564 261 . . 274 478 Parts 146 | . 41 6 35 18 . . 17 29 Haulers Intercepted . | . . . . . . . . . Recyclers Shooed 1 | . 1 . . . . . . . Parts Field Recycled . | . . . . . . . . . Retrieved Matter . | . . . . . . . . . Parts Self-Destructed . | . . . . . . . . . Prevented . | . . . . . . . . . Kills | -11 -10 -10 -9 -9 -9 -8 -8 -8 ------- Run | Jun Mat Min Mat Min Exi Min Mat Sto Combat Hostiles Destroyed 52 | . 10 4 16 6 . . 5 11 Guns 34 | . 6 4 13 6 . . . 5 Cannons 11 | . . . . . . . 5 6 AOE 7 | . 4 . 3 . . . . . Classes Destroyed 10 | . 6 1 2 1 . . . . Builder 1 | . 1 . . . . . . . Recycler 5 | . 2 . 1 . . . 2 . Operator 5 | . 1 . 1 . . . 2 1 Watcher 5 | . 3 . 1 . . . 1 . Swarmer 15 | . 6 . 6 . . . 2 1 Grunt 24 | . 4 3 6 5 . . 1 5 Brawler 2 | . . . 1 . . . . 1 Duelist 1 | . . . . 1 . . . . Sentry 9 | . . . 3 . . . 2 4 Assembled 1 | . . 1 . . . . . . Best Kill Streak 8 | . 7 2 8 3 . . 3 6 Combat Bots Only 6 | . 5 2 5 3 . . 2 6 Max Kills in Single Turn 3 | . 3 1 2 1 . . 1 1 Gunslinging . | . . . . . . . . . Exploded 2 | . 2 . 2 . . . . . Melee . | . . . . . . . . . Uniques/NPCs Destroyed . | . . . . . . . . . Combat | -11 -10 -10 -9 -9 -9 -8 -8 -8 -------- Run | Jun Mat Min Mat Min Exi Min Mat Sto Damage Taken 2862 | . 268 322 498 141 . . 388 1245 Core 904 | . 83 70 155 40 . . 89 467 Absorbed by Shields . | . . . . . . . . . Redirected to Shielding 45 | . . . 1 . . . . 44 Regen/Repaired (Parts) 55 | . 55 . . . . . . . Core Remaining (%) 63 | 100 . 38 . . . 51 . . Volleys Fired 219 | . 35 23 51 18 . . 52 40 Largest 2 | . 2 2 2 2 . . 2 2 Hottest 72 | . 60 40 50 46 . . 72 67 Shots Fired 352 | . 70 46 86 26 . . 59 65 Gun 269 | . 70 46 79 26 . . 13 35 Cannon 76 | . . . . . . . 46 30 Launcher 7 | . . . 7 . . . . . Special . | . . . . . . . . . Kinetic 327 | . 52 46 79 26 . . 59 65 Thermal . | . . . . . . . . . Explosive 7 | . . . 7 . . . . . Electromagnetic 18 | . 18 . . . . . . . Robot Hit Streak 16 | . 6 5 11 16 . . 8 12 Robot Miss Streak 5 | . 4 4 4 1 . . 5 4 Penetration Max 1 | . . . . . . . . 1 Secondary Targets 4 | . 1 1 2 . . . . . Max Gunslinging Chain 1 | . 1 1 1 . . . . . Shots Hit Robots 224 | . 43 27 54 23 . . 36 41 Core Hits 113 | . 26 9 38 7 . . 14 19 Critical Kills 1 | . . . . . . . . 1 Critical Parts Destroyed . | . . . . . . . . . Critical Strikes 3 | . . . . . . . 1 2 Destroy 1 | . . . . . . . . 1 Blast 2 | . . . . . . . 1 1 Melee Attacks . | . . . . . . . . . Impact . | . . . . . . . . . Slashing . | . . . . . . . . . Piercing . | . . . . . . . . . Sneak Attacks . | . . . . . . . . . Combat Hostiles . | . . . . . . . . . Follow-up Attacks . | . . . . . . . . . Damage Inflicted 3972 | . 577 228 943 349 . . 838 1037 Guns 2225 | . 420 228 564 349 . . 131 533 Cannons 1208 | . . . . . . . 707 501 Explosions 536 | . 157 . 379 . . . . . Melee . | . . . . . . . . . Ramming 3 | . . . . . . . . 3 Kinetic 3245 | . 232 228 564 349 . . 838 1034 Thermal 157 | . 157 . . . . . . . Explosive 379 | . . . 379 . . . . . Electromagnetic 188 | . 188 . . . . . . . Impact . | . . . . . . . . . Slashing . | . . . . . . . . . Piercing . | . . . . . . . . . Highest Corruption 5 | . 1 1 . . . . . 5 Average Corruption 1 | . 1 1 . . . . . 5 Corruption Purged . | . . . . . . . . . Corruption Blocked . | . . . . . . . . . Effects 5 | . 1 2 . . . . . 2 Message Errors 1 | . . . . . . . . 1 Matter Fused 2 | . 1 . . . . . . 1 Heat Flow Errors 2 | . . 2 . . . . . . Overload Shots . | . . . . . . . . . Overflow Damage 25 | . . . . . . . 25 . Projectiles 25 | . . . . . . . 25 . Explosions . | . . . . . . . . . Melee . | . . . . . . . . . Knockbacks 9 | . . . . . . . 9 . Impact . | . . . . . . . . . Kinetic 9 | . . . . . . . 9 . Secondary . | . . . . . . . . . Self-Inflicted Damage 74 | . 73 . . . . . . 1 Shots 2 | . 2 . . . . . . . Rammed 2 | . . . . . . . . 2 Targets Rammed 2 | . . . . . . . . 2 Kicked . | . . . . . . . . . Crushed . | . . . . . . . . . Highest Temperature 287 | . 42 287 24 12 . . 40 239 Average Temperature 60 | . 12 98 7 4 . . 15 99 Received Heat Transfer 1233 | . 66 126 96 93 . . 150 702 Effects 1 | . . 1 . . . . . . Energy Bleed 1 | . . 1 . . . . . . Siege Activations . | . . . . . . . . . Robots Corrupted . | . . . . . . . . . Combat Hostiles . | . . . . . . . . . Parts Fried . | . . . . . . . . . Impact Corruptions . | . . . . . . . . . Robots Melted . | . . . . . . . . . Combat Hostiles . | . . . . . . . . . Parts Melted 3 | . . 1 . 1 . . 1 . Heat Transferred 100 | . 100 . . . . . . . Parts Sabotaged . | . . . . . . . . . Parts Stolen . | . . . . . . . . . Parts Stripped . | . . . . . . . . . Power Chain Reactions 3 | . 3 . . . . . . . Missiles Intercepted . | . . . . . . . . . Alert | -11 -10 -10 -9 -9 -9 -8 -8 -8 ------- Run | Jun Mat Min Mat Min Exi Min Mat Sto Peak Influence 657 | . 460 212 657 365 . . 328 383 Initial 205 | . . 112 4 205 . . . 53 Average 233 | . 304 141 375 295 . . 137 257 Maximum Alert Level 2 | . 2 1 2 1 . . 1 1 Low Security (%) 46 | 100 19 85 31 12 . 100 69 21 Level 1 34 | . 40 14 5 87 . . 30 78 Level 2 18 | . 39 . 62 . . . . . Level 3 . | . . . . . . . . . Level 4 . | . . . . . . . . . Level 5 . | . . . . . . . . . High Security . | . . . . . . . . . Max Security . | . . . . . . . . . Squads Dispatched 9 | . 2 . 2 1 . . 2 2 Investigation 5 | . 1 . 1 1 . . . 2 Extermination . | . . . . . . . . . Reinforcement 4 | . 1 . 1 . . . 2 . Assault . | . . . . . . . . . Garrison . | . . . . . . . . . Intercept . | . . . . . . . . . Searches Triggered . | . . . . . . . . . Construction Impeded . | . . . . . . . . . Haulers Reinforced . | . . . . . . . . . Active Scanning Responses . | . . . . . . . . . Cargo Convoy Interrupts . | . . . . . . . . . Stealth | -11 -10 -10 -9 -9 -9 -8 -8 -8 --------- Run | Jun Mat Min Mat Min Exi Min Mat Sto Distress Signals 6 | . 1 . 3 . . . 1 1 Communications Jammed . | . . . . . . . . . Distress Signals . | . . . . . . . . . Times Spotted 103 | . 18 9 33 8 . . 15 20 Peak Tracking Total 10 | . 5 3 7 3 . . 2 10 Tactical Retreats 6 | . 1 2 2 . . . . 1 Traps | -11 -10 -10 -9 -9 -9 -8 -8 -8 ------- Run | Jun Mat Min Mat Min Exi Min Mat Sto Traps Triggered . | . . . . . . . . . Indirectly . | . . . . . . . . . Trap Hack Attempts . | . . . . . . . . . Triggered . | . . . . . . . . . Disarmed . | . . . . . . . . . Reprogrammed 6 | . . . . . . . . 6 Reused 1 | . . . . . . . . 1 Traps Extracted . | . . . . . . . . . Installed . | . . . . . . . . . Triggered 1 | . . . . . . . . 1 Exploded 1 | . . . . . 1 . . . Machines | -11 -10 -10 -9 -9 -9 -8 -8 -8 ---------- Run | Jun Mat Min Mat Min Exi Min Mat Sto Machines Disabled 5 | . 2 1 . . . . 1 1 Max in Single Turn 1 | . 1 . . . . . 1 1 Machines Repaired . | . . . . . . . . . Machines Sabotaged . | . . . . . . . . . Overloaded Fab Kills . | . . . . . . . . . Hacking | -11 -10 -10 -9 -9 -9 -8 -8 -8 --------- Run | Jun Mat Min Mat Min Exi Min Mat Sto Machines Accessed 21 | . 4 . 3 1 5 . 3 5 Terminals 11 | . 3 . 1 . . . 2 5 Fabricators . | . . . . . . . . . Repair Stations 1 | . 1 . . . . . . . Recycling Units . | . . . . . . . . . Scanalyzers 3 | . . . 2 . . . 1 . Garrison Access . | . . . . . . . . . Total Hacks 110 | . 14 . 8 1 50 . 18 19 Successful 88 | . 8 . 5 1 50 . 14 10 Failed 22 | . 6 . 3 . . . 4 9 Catastrophic 7 | . 2 . . . . . 1 4 Database Lockouts . | . . . . . . . . . Manual 9 | . . . . . 1 . . 8 Terminals 36 | . 8 . 3 . . . 6 19 Fabricators . | . . . . . . . . . Repair Stations 6 | . 6 . . . . . . . Recycling Units . | . . . . . . . . . Scanalyzers 17 | . . . 5 . . . 12 . Garrison Access . | . . . . . . . . . Terminal Hacks 67 | . 2 . 1 1 50 . 3 10 Record 50 | . . . . . 49 . . 1 Part Schematic 1 | . . . . . . . . 1 Open Door 2 | . . . . 1 . . . 1 Branch Access Points 2 | . 1 . . . . . 1 . Fabricator Index 1 | . . . . . . . . 1 Alert Level 2 | . . . 1 . . . . 1 Unreport Threat 1 | . . . . . . . 1 . Locate Traps 1 | . . . . . . . . 1 Reprogram Traps 1 | . . . . . . . . 1 Dispatch Records 2 | . . . . . . . 1 1 Hauler Manifests 1 | . . . . . . . . 1 Zone Layout 2 | . 1 . . . . . . 1 EX-Prototype ID Bank 1 | . . . . . 1 . . . Fabricator Hacks . | . . . . . . . . . Repair Station Hacks 6 | . 6 . . . . . . . Scan Component 3 | . 3 . . . . . . . Repair 3 | . 3 . . . . . . . Recycling Unit Hacks . | . . . . . . . . . Scanalyzer 15 | . . . 4 . . . 11 . Insert Component 7 | . . . 2 . . . 5 . Analyze 8 | . . . 2 . . . 6 . Garrison Access Hacks . | . . . . . . . . . Unauthorized Hacks . | . . . . . . . . . Terminals . | . . . . . . . . . Fabricators . | . . . . . . . . . Repair Stations . | . . . . . . . . . Recycling Units . | . . . . . . . . . Scanalyzers . | . . . . . . . . . Garrison Access . | . . . . . . . . . Data Cores Recovered 2 | . . . . . . . 1 1 Used . | . . . . . . . . . Hacking Detections 15 | . 4 . 3 . . . 3 5 Full Trace Events 5 | . 1 . 2 . . . . 2 Feedback Events . | . . . . . . . . . Feedback Blocked . | . . . . . . . . . Robot Schematics Acquired . | . . . . . . . . . Robots Built . | . . . . . . . . . Authchips . | . . . . . . . . . Time . | . . . . . . . . . Total Robot Build Rating . | . . . . . . . . . Part Schematics Acquired 8 | . . . 2 . . . 5 1 Parts Built . | . . . . . . . . . Authchips . | . . . . . . . . . Time . | . . . . . . . . . Total Part Build Rating . | . . . . . . . . . Parts Repaired 3 | . 3 . . . . . . . Time 78 | . 78 . . . . . . . Parts Recycled . | . . . . . . . . . Recycled Matter . | . . . . . . . . . Retrieved Matter . | . . . . . . . . . Retrieved Components . | . . . . . . . . . Parts Scanalyzed 7 | . . . 2 . . . 5 . Part Schematics Acquired 7 | . . . 2 . . . 5 . Parts Damaged . | . . . . . . . . . Bothacking | -11 -10 -10 -9 -9 -9 -8 -8 -8 ------------ Run | Jun Mat Min Mat Min Exi Min Mat Sto Used RIF Installer . | . . . . . . . . . Robots Hacked . | . . . . . . . . . Non-combat . | . . . . . . . . . Combat . | . . . . . . . . . Robot Hacks Applied . | . . . . . . . . . Relay Couplers Released . | . . . . . . . . . Fabnet Peak Effective % . | . . . . . . . . . Robots Rewired . | . . . . . . . . . Allies Hacked . | . . . . . . . . . Hacks Repelled . | . . . . . . . . . Allies | -11 -10 -10 -9 -9 -9 -8 -8 -8 -------- Run | Jun Mat Min Mat Min Exi Min Mat Sto Total Allies 6 | . . 3 . 3 . . . . Largest Group 4 | . . 2 2 4 4 3 3 1 Highest-Rated Group 71 | . . 50 50 71 71 40 40 16 Highest-Rated Ally 31 | . . 31 31 31 31 16 16 16 Total Orders . | . . . . . . . . . Ally Attacks 124 | . . 14 44 12 . . 48 6 Total Damage 1646 | . . 227 647 209 . . 502 61 Kills 27 | . . 4 12 1 . . 10 . Allies Corrupted . | . . . . . . . . . Allies Melted . | . . . . . . . . . Intel | -11 -10 -10 -9 -9 -9 -8 -8 -8 ------- Run | Jun Mat Min Mat Min Exi Min Mat Sto Robot Analysis Total . | . . . . . . . . . Derelict Logs Recovered 3 | . . 1 . 2 . . . . Drone Launches . | . . . . . . . . . Drone Recoveries . | . . . . . . . . . Exploration | -11 -10 -10 -9 -9 -9 -8 -8 -8 ------------- Run | Jun Mat Min Mat Min Exi Min Mat Sto Turns Passed 3266 | 39 508 435 548 457 366 248 433 232 Spaces Moved 2824 | 29 456 589 527 368 241 202 241 171 Core 40 | 7 . . . . . . . 33 Treads . | . . . . . . . . . Legs 885 | . . . . 290 241 202 152 . Wheels 108 | 22 86 . . . . . . . Hover 1730 | . 370 589 466 78 . . 89 138 Flight 61 | . . . 61 . . . . . Fastest Speed 37 | 50 56 56 37 56 120 120 62 50 Average Speed 79 | 96 62 58 59 107 120 120 100 59 Slowest Speed 200 | 200 100 120 120 190 120 120 120 62 Overloaded Moves . | . . . . . . . . . Propulsion Burnouts . | . . . . . . . . . Robots Hopped 1 | . . . 1 . . . . . Cave-ins Triggered . | . . . . . . . . . Exploration Rate (%) 53 | 3 69 97 39 93 66 47 30 34 Regions Visited 8 Branch Regions 5 Pre-discovered Areas 2 | . . . . 1 1 . . . Known Exits Taken 7 | . 1 1 1 1 1 1 1 . Unknown Exits Taken 1 | 1 . . . . . . . . Scrap Searched 3 | . . . . 2 . 1 . . Spaces Dug . | . . . . . . . . . Terrain Destroyed 57 | . 9 . 37 . . . 9 2 Melee . | . . . . . . . . . Projectile 11 | . . . . . . . 9 2 AOE 46 | . 9 . 37 . . . . . Terrain Rammed . | . . . . . . . . . Walls Destroyed . | . . . . . . . . . Machines Disabled . | . . . . . . . . . Actions | -11 -10 -10 -9 -9 -9 -8 -8 -8 --------- Run | Jun Mat Min Mat Min Exi Min Mat Sto Total 3563 | 36 622 641 692 410 318 208 387 249 Wait 330 | . 86 22 69 10 77 3 43 20 Move 2814 | 28 455 588 524 367 240 201 240 171 Hop 1 | . . . 1 . . . . . Pick Up 42 | . 17 4 6 4 1 2 5 3 Fast Attach 37 | 7 7 . 9 3 . . 8 3 Attach 30 | . . 3 8 3 . . 12 4 Detach 21 | . 1 . 6 2 . . 10 2 Swap 13 | . 5 . 4 . . . 4 . Drop 54 | 1 16 1 14 3 . 2 13 4 Fire 219 | . 35 23 51 18 . . 52 40 Melee . | . . . . . . . . . Ram 2 | . . . . . . . . 2 Kick . | . . . . . . . . . Crush . | . . . . . . . . . Escape Stasis . | . . . . . . . . . Rewire . | . . . . . . . . . Trap . | . . . . . . . . . Miscellaneous . | . . . . . . . . . Route ------- -11/Junkyard -10/Materials (discovered 3 exits: *Mat / *Min x2) -10/Mines (discovered 2 exits: *Mat x2) -9/Materials (discovered 4 exits: *Mat x3 / *Min) -9/Mines (discovered 3 exits: *Mat x2 / *Exi) -9/Exiles -8/Mines -8/Materials (discovered 3 exits: Fac / *Sto x2) -8/Storage History --------- Turn | Location | Event 18 | -11/Junkyard | Discovered new exit (range 16) 40 | -11/Junkyard | Entered Materials 162 | -10/Materials | Discovered new exit (range 16) 342 | -10/Materials | Identified exit to Mines 396 | -10/Materials | Repaired Lgt. Assault Rifle 423 | -10/Materials | Repaired Hover Unit 451 | -10/Materials | Repaired Hover Unit 482 | -10/Materials | Discovered new exit (range 4) 485 | -10/Materials | Identified exit to Materials 514 | -10/Materials | Build established: Scavenger-Mutant 548 | -10/Materials | Entered Mines 598 | -10/Mines | Discovered exit to Materials (range 4) 601 | -10/Mines | Received a Mining Laser from a helpful Derelict 662 | -10/Mines | Assembled infested the area 680 | -10/Mines | Learned 8 Materials zone layouts 735 | -10/Mines | Core integrity fell below 50% 856 | -10/Mines | Discovered exit to Materials (range 3) 983 | -10/Mines | Entered Materials 983 | -9/Materials | Accompanied by 2 allies 983 | -9/Materials | Evolved 2 slots: Utility x2 984 | -9/Materials | Identified exit to Mines 984 | -9/Materials | Identified exit to Materials 992 | -9/Materials | Led the pair of lost Derelicts to an unsafe place 1207 | -9/Materials | Lost 3 parts (1n2w) 1531 | -9/Materials | Entered Mines 1531 | -9/Mines | Accompanied by 1 ally 1552 | -9/Mines | Discovered exit to Materials (range 7) 1570 | -9/Mines | Learned 4 Materials zone layouts 1575 | -9/Mines | Met a Derelict shopkeep closing up shop 1711 | -9/Mines | Found a damaged Exp. Sensor Array with a note attached 1714 | -9/Mines | Found Prototype Device 1732 | -9/Mines | Learned location of Storage (-8) 1899 | -9/Mines | Deemed a non-threat by the Exiles lab entrance 1899 | -9/Mines | Discovered new exit (range 5) 1903 | -9/Mines | Identified exit to Exiles 1942 | -9/Mines | Assisted by bots powering up and referring to "LRC-V3" 1988 | -9/Mines | Entered Exiles 1988 | -9/Exiles | Accompanied by 4 allies 2017 | -9/Exiles | Met 8R-AWN 2018 | -9/Exiles | Led the pair of lost Derelicts to a safe place 2038 | -9/Exiles | Met EX-HEX 2071 | -9/Exiles | Met EX-BIN 2093 | -9/Exiles | Aligned with FarCom system 2094 | -9/Exiles | Given EX-Vault access code 2142 | -9/Exiles | Opened EX-Vault 2148 | -9/Exiles | Found Supersonic Drone Bay 2174 | -9/Exiles | Warned to stay clear of 0b10 Research branches 2192 | -9/Exiles | Exiles lab attacked by MAIN.C 2235 | -9/Exiles | Learned location of Zion (-6) 2271 | -9/Exiles | Discovered new exit (range 11) 2280 | -9/Exiles | Identified exit to Mines 2354 | -9/Exiles | Left Exiles lab with Supersonic Drone Bay 2354 | -9/Exiles | Entered Mines 2354 | -8/Mines | Accompanied by 3 allies 2573 | -8/Mines | Discovered exit to Materials (range 15) 2602 | -8/Mines | Entered Materials 2602 | -8/Materials | Accompanied by 3 allies 2602 | -8/Materials | Evolved 2 slots: Propulsion x2 2603 | -8/Materials | Identified exit to Factory 2799 | -8/Materials | Identified exit to Storage 3035 | -8/Materials | Entered Storage 3035 | -8/Storage | Accompanied by 1 ally 3233 | -8/Storage | Core integrity fell below 50% 3244 | -8/Storage | Core integrity fell below 20% 3267 | -8/Storage | Destroyed by G-47 Trooper with Particle Gun Last Messages --------------- 03224_ Imp. Light Cannon destroyed. 03225_ Acquired Hvy. Assault Rifle. 03226_ Critical hit (Burn: +37). 03230_ G-47 Trooper destroyed. 03231_ System corrupted: Matter fused (-9). 03231_ Acquired 48 matter. 03238_ Critical hit (Burn: +37). 03240_ Hacking Suite destroyed. 03242_ Lgt. Nuclear Core destroyed. 03244_ Hvy. Assault Rifle destroyed. 03247_ Acquired Hover Unit. 03249_ Imp. Hover Unit destroyed. 03250_ Slammed into G-50 Soldier. 03251_ WYL6ZKKFRMO